lending/lending_fUSD_20250224
["ID","MTS","AMOUNT","RATE_DAILY","PERIOD"]
[354288908,1740393132340,-1250.76584709,0.00018328,2]
[354288909,1740393132349,-1238.85748199,0.00018328,2]
[354288910,1740393132361,-876.53684102,0.00018328,2]
[354288911,1740393132371,-1448.98076832,0.00018328,2]
[354288912,1740393132380,-1222.78258024,0.00018328,2]
[354288913,1740393132390,-285.58779692,0.00018328,2]
[354288914,1740393132399,-2133.2249474,0.00018328,2]
[354288915,1740393132409,-902.43353125,0.00018328,2]
[354288916,1740393132417,-2952.48002212,0.00018328,2]
[354288917,1740393132427,-637.72001749,0.00018328,2]
[354288918,1740393132436,-1714.43969364,0.00018328,2]
[354288919,1740393132444,-1345.32590544,0.00018328,2]
[354288920,1740393132453,-1346.6594584,0.00018328,2]
[354288921,1740393132462,-1153.19636252,0.00018328,2]
[354288922,1740393132471,-1050.82142814,0.00018328,2]
[354288923,1740393132480,-1549.433529,0.00018328,2]
[354288924,1740393132489,-2116.87725094,0.00018328,2]
[354288925,1740393132499,-1323.92494422,0.00018328,2]
[354288926,1740393132508,-1976.27240086,0.00018328,2]
[354288927,1740393132517,-968.15280291,0.00018328,2]
[354288928,1740393132527,-2709.45814656,0.00018328,2]
[354288929,1740393132535,-1417.33698379,0.00018328,2]
[354288930,1740393132544,-649.22019202,0.00018328,2]
[354288931,1740393132553,-518.11176434,0.00018328,2]
[354288932,1740393132562,-1383.12364143,0.00018328,2]
[354288933,1740393132571,-576.09852351,0.00018328,2]
[354288934,1740393132580,-639.76437425,0.00018328,2]
[354288935,1740393132588,-2137.2935894,0.00018328,2]
[354288936,1740393132598,-1329.87315261,0.00018328,2]
[354288937,1740393132609,-2522.19866918,0.00018328,2]
[354288938,1740393132618,-332.06832174,0.00018328,2]
[354288939,1740393132628,-1057.98193248,0.00018328,2]
[354288940,1740393132637,-82663.15,0.00018356,2]
[354288941,1740393132645,-400.0,0.0001837,2]
[354288942,1740393132653,-559.51,0.00018392,7]
[354288943,1740393132662,-559.51,0.00018392,7]
[354288944,1740393132671,-213.69148689,0.00018442,2]
[354288945,1740393132678,-152.0,0.00018444,11]
[354288946,1740393132687,-400.0,0.0001847,2]
[354288947,1740393132695,-400.0,0.0001847,2]
[354288948,1740393132704,-295.0037,0.00018488,7]
[354288949,1740393132712,-54967.30621465,0.00018498,2]
[354288950,1740393132721,-20437.64765659,0.000185,3]
[354288951,1740393132730,-150.0,0.00018507,4]
[354288952,1740393132739,-784.0,0.00018542,2]
[354288953,1740393132748,-1424.0,0.00018542,2]
[354288954,1740393132758,-907.0,0.00018542,2]
[354288955,1740393132767,-1267.0,0.00018542,2]
[354288956,1740393132776,-540.0,0.00018542,2]
[354288957,1740393132784,-4033.0,0.00018542,2]
[354288958,1740393132794,-1111.0,0.00018542,2]
[354288959,1740393132803,-2028.0,0.00018542,2]
[354288960,1740393132811,-1275.0,0.00018542,2]
[354288961,1740393132820,-150.0,0.00018542,2]
[354288962,1740393132829,-3921.0,0.00018542,2]
[354288963,1740393132838,-154.65,0.000186,2]
[354288964,1740393132847,-154.65,0.000186,2]
[354288965,1740393132859,-299.999999,0.00018632,3]
[354288966,1740393132870,-559.51,0.00018666,7]
[354288967,1740393132879,-559.51,0.00018666,7]
[354288968,1740393132888,-150.0,0.00018688,2]
[354288969,1740393132898,-150.0,0.00018688,2]
[354288970,1740393132909,-295.0037,0.00018688,7]
[354288971,1740393132918,-2101.35212653,0.000187,5]
[354288972,1740393132927,-1000.0,0.000188,2]
[354288973,1740393132938,-152.0,0.00018864,12]
[354288974,1740393132949,-236.30091962,0.00018864,5]
[354288975,1740393132958,-295.0037,0.00018888,7]
[354288976,1740393132967,-1288.87761857,0.000189,2]
[354288977,1740393132976,-559.51,0.0001894,7]
[354288978,1740393132985,-559.51,0.0001894,7]
[354288979,1740393132994,-601.18,0.0001899,2]
[354288980,1740393133003,-908.18132104,0.00019,3]
[354288981,1740393133012,-466.8431151,0.00019,2]
[354288982,1740393133020,-9004.2421213,0.00019,2]
[354288983,1740393133029,-900.0,0.00019,20]
[354288984,1740393133038,-929.53,0.0001908,2]
[354288985,1740393133047,-295.0037,0.00019088,7]
[354288986,1740393133057,-500.0,0.0001915,2]
[354288987,1740393133066,-500.0,0.0001915,2]
[354288988,1740393133076,-500.0,0.0001915,2]
[354288989,1740393133084,-500.0,0.0001915,2]
[354288990,1740393133094,-500.0,0.0001915,2]
[354288991,1740393133104,-500.0,0.0001915,2]
[354288992,1740393133113,-500.0,0.0001915,2]
[354288993,1740393133122,-500.0,0.0001915,2]
[354288994,1740393133132,-500.0,0.0001915,2]
[354288995,1740393133141,-500.0,0.0001915,2]
[354288996,1740393133151,-500.0,0.0001915,2]
[354288997,1740393133159,-500.0,0.0001915,2]
[354288998,1740393133168,-500.0,0.0001915,2]
[354288999,1740393133178,-500.0,0.0001915,2]
[354289000,1740393133187,-500.0,0.0001915,2]
[354289001,1740393133197,-500.0,0.0001915,2]
[354289002,1740393133206,-500.0,0.0001915,2]
[354289003,1740393133215,-500.0,0.0001915,2]
[354289004,1740393133224,-500.0,0.0001915,2]
[354289005,1740393133234,-500.0,0.0001915,2]
[354289006,1740393133243,-301.15178231,0.0001915,2]
[354289007,1740393133253,-500.0,0.00019178,14]
[354289008,1740393133262,-500.0,0.00019178,14]
[354289009,1740393133272,-500.0,0.00019178,14]
[354289010,1740393133281,-500.0,0.00019178,14]
[354289011,1740393133291,-500.0,0.00019178,14]
[354289012,1740393133300,-504.90997171,0.00019178,14]
[354289013,1740393133309,-500.0,0.00019178,2]
[354289014,1740393133318,-500.0,0.00019178,2]
[354289015,1740393133327,-500.0,0.00019178,2]
[354289016,1740393133336,-500.0,0.00019178,2]
[354289017,1740393133345,-500.0,0.00019178,2]
[354289018,1740393133354,-500.0,0.00019178,2]
[354289019,1740393133363,-500.0,0.00019178,2]
[354289020,1740393133372,-500.0,0.00019178,2]
[354289021,1740393133381,-500.0,0.00019178,2]
[354289022,1740393133390,-500.0,0.00019178,2]
[354289023,1740393133401,-500.0,0.00019178,2]
[354289024,1740393133410,-500.0,0.00019178,2]
[354289025,1740393133419,-500.0,0.00019178,2]
[354289026,1740393133428,-500.0,0.00019178,2]
[354289027,1740393133437,-500.0,0.00019178,2]
[354289028,1740393133446,-500.0,0.00019178,2]
[354289029,1740393133455,-500.0,0.00019178,2]
[354289030,1740393133464,-346.12677434,0.00019178,2]
[354289031,1740393133474,-500.0,0.00019178,5]
[354289032,1740393133484,-500.0,0.00019178,5]
[354289033,1740393133493,-500.0,0.00019178,5]
[354289034,1740393133502,-500.0,0.00019178,5]
[354289035,1740393133512,-500.0,0.00019178,5]
[354289036,1740393133521,-500.0,0.00019178,5]
[354289037,1740393133530,-278.90663621,0.00019178,2]
[354289038,1740393133539,-200.0,0.000192,2]
[354289039,1740393133547,-500.0,0.00019203,2]
[354289040,1740393133556,-559.51,0.00019214,7]
[354289041,1740393133565,-559.51,0.00019214,7]
[354289042,1740393133574,-965.0,0.00019274,2]
[354289043,1740393133583,-295.0037,0.00019288,7]
[354289044,1740393133592,-354.0,0.00019294,2]
[354289045,1740393133602,-500.0,0.00019303,2]
[354289046,1740393133613,-4200.0,0.00019322,2]
[354289047,1740393133623,-2300.0,0.00019322,2]
[354289048,1740393133632,-5800.0,0.00019322,2]
[354289049,1740393133642,-1749.09,0.00019397,30]
[354289050,1740393133651,-500.0,0.00019403,2]
[354289051,1740393133668,-999.0,0.00019452,6]
[354289052,1740393133679,-965.0,0.00019473,2]
[354289053,1740393133688,-559.51,0.00019488,7]
[354289054,1740393133697,-559.51,0.00019488,7]
[354289055,1740393133707,-295.0037,0.00019488,7]
[354289056,1740393133716,-500.0,0.000195,2]
[354289057,1740393133726,-500.0,0.000195,2]
[354289058,1740393133735,-500.0,0.000195,2]
[354289059,1740393133745,-500.0,0.000195,2]
[354289060,1740393133754,-500.0,0.000195,2]
[354289061,1740393133764,-500.0,0.000195,2]
[354289062,1740393133774,-500.0,0.000195,2]
[354289063,1740393133783,-500.0,0.000195,2]
[354289064,1740393133793,-500.0,0.000195,2]
[354289065,1740393133802,-500.0,0.000195,2]
[354289066,1740393133812,-500.0,0.000195,2]
[354289067,1740393133821,-500.0,0.000195,2]
[354289068,1740393133831,-500.0,0.000195,2]
[354289069,1740393133840,-500.0,0.000195,2]
[354289070,1740393133849,-500.0,0.000195,2]
[354289071,1740393133861,-500.0,0.000195,2]
[354289072,1740393133874,-500.0,0.000195,2]
[354289073,1740393133883,-500.0,0.000195,2]
[354289074,1740393133893,-500.0,0.000195,2]
[354289075,1740393133902,-500.0,0.000195,2]
[354289076,1740393133913,-500.0,0.00019503,2]
[354289077,1740393133923,-2563.59481382,0.00019564,2]
[354289078,1740393133932,-2563.59481374,0.00019564,2]
[354289079,1740393133941,-500.0,0.00019603,2]
[354289080,1740393133952,-965.0,0.00019671,2]
[354289081,1740393133962,-500.0,0.00019703,2]
[354289082,1740393133971,-511.03883734,0.00019726,3]
[354289083,1740393133980,-1000.0,0.00019755,2]
[354289084,1740393133990,-559.51,0.00019762,7]
[354289085,1740393133999,-559.51,0.00019762,7]
[354289086,1740393134009,-366.51,0.000198,31]
[354289087,1740393134019,-366.51,0.000198,31]
[354289088,1740393134027,-366.51,0.000198,31]
[354289089,1740393134037,-366.51,0.000198,31]
[354289090,1740393134046,-366.51,0.000198,31]
[354289091,1740393134055,-366.51,0.000198,31]
[354289092,1740393134064,-366.51,0.000198,31]
[354289093,1740393134074,-366.51,0.000198,31]
[354289094,1740393134083,-366.51,0.000198,31]
[354289095,1740393134095,-366.51,0.000198,31]
[354289096,1740393134105,-366.51,0.000198,31]
[354289097,1740393134114,-366.51,0.000198,31]
[354289098,1740393134125,-366.51,0.000198,31]
[354289099,1740393134134,-366.51,0.000198,31]
[354289100,1740393134144,-366.51,0.000198,31]
[354289101,1740393134153,-366.51,0.000198,31]
[354289102,1740393134162,-508.51,0.00019803,2]
[354289103,1740393134171,-1205.97926749,0.0001986,10]
[354289104,1740393134182,-61519.6551726,0.0001987,7]
[354289105,1740393134191,-965.0,0.0001987,2]
[354289106,1740393134201,-295.0037,0.00019888,7]
[354289107,1740393134210,-10986.0142295,0.000199,5]
[354289108,1740393134219,-179.42708337,0.000199,2]
[354289109,1740393134229,-4000.0,0.0001991,2]
[354289110,1740393134238,-150.0,0.00019973,2]
[354289111,1740393134247,-589.2176251,0.0001998,2]
[354289112,1740393134257,-910105.6685297,0.0002,15]
[354289113,1740393134266,-1013.0,0.0002,6]
[354289114,1740393134275,-798.98965031,0.0002,7]
[354289115,1740393134285,-1001.33900206,0.0002,2]
[354289116,1740393134294,-2151.62019735,0.0002,2]
[354289117,1740393134303,-1717.1038042,0.0002,2]
[354289118,1740393134312,-1105.958109,0.0002,10]
[354289119,1740393134321,-7491.760429,0.0002,7]
[354289120,1740393134330,-2802.963291,0.0002,7]
[354289121,1740393134339,-1424.982913,0.0002,7]
[354289122,1740393134348,-1607.35863432,0.0002,30]
[354289123,1740393134359,-2589.35669665,0.0002,5]
[354289124,1740393134368,-900.0,0.0002,21]
[354289125,1740393134378,-24750.87,0.0002,2]
[354289126,1740393134388,-1064.95994001,0.0002,4]
[354289127,1740393134397,-500000.0,0.0002,2]
[354289128,1740393134407,-2110.0,0.0002,2]
[354289129,1740393134416,-56807.89934915,0.0002,30]
[354289130,1740393134425,-7836.25330599,0.0002,5]
[354289131,1740393134434,-7944.06816737,0.0002,15]
[354289132,1740393134443,-207.28618238,0.0002,2]
[354289133,1740393134452,-153.78771587,0.0002,30]
[354289134,1740393134461,-21493.13726262,0.0002,4]
[354289135,1740393134471,-202.8759063,0.0002,30]
[354289136,1740393134480,-2000.0,0.0002,2]
[354289137,1740393134489,-2000.0,0.0002,2]
[354289138,1740393134498,-15663.56161165,0.0002,2]
[354289139,1740393134507,-2000.0,0.0002,2]
[354289140,1740393134516,-150.0,0.0002,2]
[354289141,1740393134526,-10000.0,0.0002,2]
[354289142,1740393134535,-412.97130921,0.0002,30]
[354289143,1740393134544,-12500.0,0.0002,2]
[354289144,1740393134554,-10000.0,0.0002,2]
[354289145,1740393134563,-159.0,0.0002,2]
[354289146,1740393134572,-159.0,0.0002,2]
[354289147,1740393134582,-1000.0,0.0002,2]
[354289148,1740393134591,-1500.0,0.0002,5]
[354289149,1740393134601,-150.0,0.0002,5]
[354289150,1740393134611,-150.0,0.0002,5]
[354289151,1740393134620,-559.51,0.00020036,7]
[354289152,1740393134630,-559.51,0.00020036,7]
[354289153,1740393134639,-12500.0,0.0002004,2]
[354289154,1740393134648,-965.0,0.00020069,2]
[354289155,1740393134658,-12500.0,0.0002008,2]
[354289156,1740393134668,-295.0037,0.00020088,7]
[354289157,1740393134677,-12500.0,0.0002012,2]
[354289158,1740393134687,-359.05,0.00020148,2]
[354289159,1740393134696,-12500.0,0.0002016,2]
[354289160,1740393134706,-150.0,0.00020243,120]
[354289161,1740393134715,-965.0,0.00020267,2]
[354289162,1740393134725,-295.0037,0.00020288,7]
[354289163,1740393134734,-3004.46246209,0.0002029,2]
[354289164,1740393134743,-11000.0,0.000203,2]
[354289165,1740393134754,-559.51,0.0002031,7]
[354289166,1740393134763,-559.51,0.0002031,7]
[354289167,1740393134773,-1389.13,0.00020312,2]
[354289168,1740393134784,-327.40451049,0.00020356,120]
[354289169,1740393134793,-1062.0,0.00020384,120]
[354289170,1740393134804,-28522.04265234,0.0002039,15]
[354289171,1740393134814,-965.0,0.00020466,2]
[354289172,1740393134824,-295.0037,0.00020488,7]
[354289173,1740393134833,-7357.91,0.000205,2]
[354289174,1740393134843,-255.29571247,0.000205,2]
[354289175,1740393134853,-200.0,0.000205,2]
[354289176,1740393134865,-250.0,0.000205,2]
[354289177,1740393134878,-250.0,0.000205,2]
[354289178,1740393134888,-250.0,0.000205,2]
[354289179,1740393134897,-250.0,0.000205,2]
[354289180,1740393134908,-250.0,0.000205,2]
[354289181,1740393134918,-399.24938549,0.000205,2]
[354289182,1740393134928,-2110.0,0.000205,2]
[354289183,1740393134937,-300.0,0.000205,2]
[354289184,1740393134948,-199.78027576,0.00020521,2]
[354289185,1740393134958,-205.340716,0.00020548,2]
[354289186,1740393134969,-177.89,0.00020548,2]
[354289187,1740393134978,-20486.59,0.00020548,2]
[354289188,1740393134987,-87249.55285229,0.00020556,2]
[354289189,1740393134997,-14047346.46941188,0.00020564,40]
[354289190,1740393135007,-181840.78496654,0.00020564,30]
[354289191,1740393135017,-193492.06314939,0.00020564,30]
[354289192,1740393135027,-1267.81680348,0.00020564,4]
[354289193,1740393135037,-76261.00078725,0.00020564,2]
[354289194,1740393135047,-6692.43917679,0.00020564,4]
[354289195,1740393135056,-225874.35486979,0.00020564,30]
[354289196,1740393135066,-5264.9964528,0.00020564,4]
[354289197,1740393135076,-14317.73670856,0.00020564,2]
[354289198,1740393135086,-378502.99659127,0.00020564,30]
[354289199,1740393135096,-1414892.6535648,0.00020564,30]
[354289200,1740393135106,-1020.53469853,0.00020564,2]
[354289201,1740393135115,-555.39886503,0.00020564,5]
[354289202,1740393135125,-1472.95100585,0.00020564,10]
[354289203,1740393135134,-3632561.67095943,0.00020564,30]
[354289204,1740393135144,-3023746.43817973,0.00020564,30]
[354289205,1740393135154,-254144.530337,0.00020564,30]
[354289206,1740393135163,-209069.6099251,0.00020564,30]
[354289207,1740393135173,-7801.33473981,0.00020564,7]
[354289208,1740393135183,-611.72362696,0.00020564,6]
[354289209,1740393135193,-1012.25114603,0.00020564,15]
[354289210,1740393135203,-524.01817971,0.00020564,7]
[354289211,1740393135212,-300.0,0.00020564,15]
[354289212,1740393135222,-965.20396636,0.00020564,5]
[354289213,1740393135232,-2243.41511906,0.00020564,14]
[354289214,1740393135241,-862.5023565,0.00020564,5]
[354289215,1740393135251,-1223.85871288,0.00020564,15]
[354289216,1740393135261,-2211.44956358,0.00020564,10]
[354289217,1740393135271,-585.03718843,0.00020564,5]
[354289218,1740393135280,-2241.62390207,0.00020564,10]
[354289219,1740393135290,-1000.0,0.00020564,10]
[354289220,1740393135299,-20597.55964532,0.00020564,7]
[354289221,1740393135309,-500.0,0.00020564,10]
[354289222,1740393135319,-18691.83818887,0.00020564,5]
[354289223,1740393135328,-4786.72851469,0.00020564,10]
[354289224,1740393135338,-270.77100718,0.00020564,10]
[354289225,1740393135348,-13155.03197363,0.00020564,5]
[354289226,1740393135358,-305797.80479099,0.00020564,30]
[354289227,1740393135368,-22162.6830253,0.00020564,45]
[354289228,1740393135378,-5761.59592085,0.00020564,10]
[354289229,1740393135388,-1490725.02382427,0.00020564,30]
[354289230,1740393135397,-7726.92384581,0.00020564,7]
[354289231,1740393135406,-1653.64160576,0.00020564,7]
[354289232,1740393135416,-5625.52197715,0.00020564,2]
[354289233,1740393135425,-162.74777568,0.00020564,2]
[354289234,1740393135435,-119381.39289411,0.00020564,30]
[354289235,1740393135446,-15999.0,0.00020564,14]
[354289236,1740393135456,-275.0,0.00020564,14]
[354289237,1740393135465,-500.0,0.00020564,7]
[354289238,1740393135475,-4996.61197215,0.00020564,7]
[354289239,1740393135484,-458.41152203,0.00020564,7]
[354289240,1740393135494,-182659.27810365,0.00020564,7]
[354289241,1740393135504,-31181.61646926,0.00020564,30]
[354289242,1740393135514,-3151.50607131,0.00020564,30]
[354289243,1740393135523,-5300.60428187,0.00020564,30]
[354289244,1740393135534,-3619.68023603,0.00020564,30]
[354289245,1740393135543,-2354.00737783,0.00020564,30]
[354289246,1740393135553,-2747.97371343,0.00020564,30]
[354289247,1740393135563,-4077.01352571,0.00020564,30]
[354289248,1740393135573,-2500.0,0.00020564,30]
[354289249,1740393135583,-1004.37753471,0.00020564,30]
[354289250,1740393135592,-3000.0,0.00020564,30]
[354289251,1740393135602,-22563.26376191,0.00020564,2]
[354289252,1740393135617,-4889.39339754,0.00020564,30]
[354289253,1740393135627,-3053.4073856,0.00020564,30]
[354289254,1740393135638,-58819.08129205,0.00020564,30]
[354289255,1740393135648,-113432.3574997,0.00020564,30]
[354289256,1740393135658,-2500.0,0.00020564,30]
[354289257,1740393135668,-4398.47123727,0.00020564,30]
[354289258,1740393135679,-30482.683189,0.00020564,30]
[354289259,1740393135690,-6000.0,0.00020564,30]
[354289260,1740393135701,-1000.0,0.00020564,30]
[354289261,1740393135711,-99419.2768872,0.00020564,30]
[354289262,1740393135721,-795.27661593,0.00020564,2]
[354289263,1740393135919,-10000.0,0.00020564,30]
[354289264,1740393135929,-51562.11805626,0.00020564,30]
[354289265,1740393135938,-106867.59795998,0.00020564,30]
[354289266,1740393135949,-718656.21176222,0.00020564,30]
[354289267,1740393136886,-150.0,0.00014789,2]
[354289268,1740393136896,-150.0,0.00014789,2]
[354289269,1740393136906,-150.0,0.00014797,2]
[354289270,1740393136916,-150.0,0.00014799,2]
[354289271,1740393136925,-150.0,0.00014803,2]
[354289272,1740393136935,-150.0,0.0001481,2]
[354289273,1740393136945,-150.0,0.00014811,2]
[354289274,1740393136955,-150.0,0.00014811,2]
[354289275,1740393136964,-150.0,0.00014814,2]
[354289276,1740393136973,-150.0,0.0001482,2]
[354289277,1740393136983,-150.0,0.00014823,2]
[354289278,1740393136992,-150.0,0.00014829,2]
[354289279,1740393137001,-150.0,0.0001484,2]
[354289280,1740393137010,-150.0,0.00014845,2]
[354289281,1740393137019,-150.0,0.00014857,2]
[354289282,1740393137028,-150.0,0.00014858,2]
[354289283,1740393137038,-150.0,0.00014863,2]
[354289284,1740393137047,-150.0,0.00014865,2]
[354289285,1740393137055,-150.0,0.00014871,2]
[354289286,1740393137064,-150.0,0.00014872,2]
[354289287,1740393137073,-150.0,0.00014874,2]
[354289288,1740393137083,-150.0,0.00014894,2]
[354289289,1740393137092,-150.0,0.00014907,2]
[354289290,1740393137101,-150.0,0.00014918,2]
[354289291,1740393137110,-76.16754611,0.00014918,2]
[354289292,1740393137193,-150.0,0.00014833,2]
[354289293,1740393137202,-150.0,0.00014841,2]
[354289294,1740393137215,-150.0,0.00014873,2]
[354289295,1740393137224,-150.0,0.00014914,2]
[354289296,1740393137234,-73.83245389,0.00014918,2]
[354289297,1740393137243,-150.0,0.00014922,2]
[354289298,1740393137253,-150.0,0.00014928,2]
[354289299,1740393137262,-150.0,0.00014931,2]
[354289300,1740393137272,-150.0,0.00014931,2]
[354289301,1740393137282,-150.0,0.00014934,2]
[354289302,1740393137292,-150.0,0.00014935,2]
[354289303,1740393137302,-150.0,0.00014942,2]
[354289304,1740393137311,-150.0,0.00014943,2]
[354289305,1740393137322,-150.0,0.00014945,2]
[354289306,1740393137332,-150.0,0.00014956,2]
[354289307,1740393137341,-150.0,0.00014965,2]
[354289308,1740393137350,-150.0,0.00014978,2]
[354289309,1740393137361,-150.0,0.0001498,2]
[354289310,1740393137372,-150.0,0.00014992,2]
[354289311,1740393137382,-150.0,0.00014992,2]
[354289312,1740393137391,-150.0,0.00014994,2]
[354289313,1740393137401,-150.0,0.00014995,2]
[354289314,1740393137411,-150.0,0.00015,2]
[354289315,1740393137420,-150.0,0.00015004,2]
[354289316,1740393137430,-150.0,0.00015006,2]
[354289317,1740393137440,-150.0,0.00015009,2]
[354289318,1740393137449,-150.0,0.00015018,2]
[354289319,1740393137459,-150.0,0.00015021,2]
[354289320,1740393137468,-150.0,0.00015024,2]
[354289321,1740393137478,-150.0,0.00015029,2]
[354289322,1740393137487,-150.0,0.0001503,2]
[354289323,1740393137496,-150.0,0.00015031,2]
[354289324,1740393137505,-150.0,0.00015038,2]
[354289325,1740393137515,-150.0,0.00015048,2]
[354289326,1740393137524,-150.0,0.00015049,2]
[354289327,1740393137534,-150.0,0.00015061,2]
[354289328,1740393137546,-307.41,0.00016438,2]
[354289329,1740393137555,-1536.77,0.0001652,2]
[354289330,1740393137565,-6517.68,0.00016602,2]
[354289331,1740393137574,-1162.71,0.00016602,2]
[354289332,1740393137583,-1536.77,0.00016602,2]
[354289333,1740393137593,-6517.68,0.00016684,2]
[354289334,1740393137602,-1162.71,0.00016684,2]
[354289335,1740393137612,-1536.77,0.00016684,2]
[354289336,1740393137622,-6517.68,0.00016767,2]
[354289337,1740393137633,-1162.71,0.00016767,2]
[354289338,1740393137642,-1536.77,0.00016767,2]
[354289339,1740393137652,-6517.68,0.00016849,2]
[354289340,1740393137661,-1162.71,0.00016849,2]
[354289341,1740393137671,-1536.77,0.00016849,2]
[354289342,1740393137681,-6517.68,0.00016931,2]
[354289343,1740393137690,-1162.71,0.00016931,2]
[354289344,1740393137700,-1536.77,0.00016931,2]
[354289345,1740393137710,-6517.68,0.00017013,2]
[354289346,1740393137719,-1162.71,0.00017013,2]
[354289347,1740393137729,-1536.77,0.00017013,2]
[354289348,1740393137740,-6517.68,0.00017095,2]
[354289349,1740393137750,-1162.71,0.00017095,2]
[354289350,1740393137760,-1536.77,0.00017095,2]
[354289351,1740393137770,-6517.68,0.00017178,2]
[354289352,1740393137780,-1162.71,0.00017178,2]
[354289353,1740393137790,-1536.77,0.00017178,2]
[354289354,1740393137800,-6517.68,0.0001726,2]
[354289355,1740393137809,-1162.71,0.0001726,2]
[354289356,1740393137818,-1536.77,0.0001726,2]
[354289357,1740393137828,-6517.68,0.00017342,2]
[354289358,1740393137837,-1162.71,0.00017342,2]
[354289359,1740393137847,-1536.77,0.00017342,2]
[354289360,1740393137856,-2006.84513447,0.00017424,2]
[354289361,1740393142687,-500.0,9.999e-05,2]
[354289362,1740393142711,-213.60257561,9.999e-05,2]
[354289363,1740393142734,-500.0,9.999e-05,2]
[354289364,1740393142758,-500.0,9.999e-05,2]
[354289365,1740393142781,-500.0,9.999e-05,2]
[354289366,1740393142805,-500.0,9.999e-05,2]
[354289367,1740393142844,-200.0,9.999e-05,2]
[354289368,1740393142886,-500.0,9.999e-05,2]
[354289369,1740393142925,-500.0,9.999e-05,2]
[354289370,1740393142967,-408.52016878,9.999e-05,2]
[354289371,1740393188193,-500.0,0.00010999,2]
[354289383,1740393493239,162.47,8.767e-05,2]
[354289385,1740393831236,500.0,0.0002,120]
[354289386,1740393858851,500.0,0.0002,120]
[354289387,1740393888079,508.4,0.0002,120]
[354289395,1740394231524,-470.94570335,0.00012244,2]
[354289396,1740394231533,-2200.0,0.00012344,2]
[354289397,1740394231542,-1200.0,0.00012344,2]
[354289398,1740394231551,-182.71493969,0.00012344,2]
[354289399,1740394231562,-2139.23480222,0.00012344,2]
[354289400,1740394231629,-678.05025809,0.00012344,2]
[354289401,1740394231639,-550.0,0.00013,2]
[354289402,1740394231647,-2257.83277649,0.00013,2]
[354289403,1740394231656,-150.0,0.00013452,2]
[354289404,1740394231666,-500.0,0.00013468,2]
[354289405,1740394231675,-500.0,0.00013468,2]
[354289406,1740394231684,-500.0,0.00013578,2]
[354289407,1740394231693,-2200.0,0.00013714,2]
[354289408,1740394231702,-1200.0,0.00013714,2]
[354289409,1740394231711,-3000.0,0.00013714,2]
[354289410,1740394231720,-470.94570335,0.00014154,2]
[354289411,1740394231730,-185.9,0.00014283,2]
[354289412,1740394231739,-150.99,0.00014504,2]
[354289413,1740394231748,-299.99,0.00014504,2]
[354289414,1740394231759,-150.99,0.00014504,2]
[354289415,1740394231768,-500.0,0.00014839,2]
[354289416,1740394231778,-868.25,0.0001485,2]
[354289417,1740394231787,-1000.0,0.00014872,2]
[354289418,1740394231796,-1682.97,0.00014893,2]
[354289419,1740394231805,-649.88,0.00014995,2]
[354289420,1740394231814,-2347.53892946,0.00015,2]
[354289421,1740394231823,-150.0,0.00015083,2]
[354289422,1740394231832,-2200.0,0.00015084,2]
[354289423,1740394231841,-1200.0,0.00015084,2]
[354289424,1740394231850,-3000.0,0.00015084,2]
[354289425,1740394231860,-269.97,0.00015171,2]
[354289426,1740394231870,-559.3131921,0.00015839,2]